[Event "FIDE Womens Grand Swiss 2023"]
[Site "Douglas/Isle of Man"]
[Date "2023.11.01"]
[Round "7.19"]
[White "Socko, Monika"]
[Black "Arakhamia-Grant, Ketevan"]
[Result "1-0"]
[ECO "E94"]
[WhiteElo "2380"]
[BlackElo "2297"]
[Annotator "ChessBase"]
[PlyCount "81"]
[EventDate "2023.10.04"]
[EventType "swiss"]
[EventCountry "GBR"]
[SourceTitle "playchess.com"]
[Source "ChessBase"]
[SourceQuality "1"]
[TimeControl "40/6000+30:20/3000+30:900+30"]

1. d4 {[%emt 0:10:04]} Nf6 {[%emt 0:10:04]} 2. c4 {[%emt 0:00:05]} g6 {[%emt 0:00:09]} 3. Nc3 {[%emt 0:00:06]} Bg7 {[%emt 0:00:04]} 4. e4 {[%emt 0:00:24]} d6 {[%emt 0:00:07]} 5. Nf3 {[%emt 0:00:06]} O-O {[%emt 0:00:08]} 6. Be2 {[%emt 0:00:06]} Nbd7 {[%emt 0:00:12]} 7. O-O {[%emt 0:03:06]} e5 {[%emt 0:00:08]} 8. Be3 {[%emt 0:00:52]} Qe7 {[%emt 0:00:17]} 9. Qc2 {[%emt 0:01:55]} c6 {[%emt 0:00:17]} 10. d5 {[%emt 0:05:31]} c5 {[%emt 0:00:21]} 11. Nd2 {[%emt 0:04:09]} Kh8 {[%emt 0:01:44]} 12. Rae1 {[%emt 0:05:42]} Ng8 {[%emt 0:00:57]} 13. a3 {[%emt 0:04:21]} Bh6 {[%emt 0:19:20]} 14. Qd3 {[%emt 0:03:09]} f5 {[%emt 0:02:52]} 15. exf5 {[%emt 0:03:15]} gxf5 {[%emt 0:00:29]} 16. f4 {[%emt 0:06:53]} e4 {[%emt 0:16:10]} 17. Qc2 {[%emt 0:01:18]} Ndf6 {[%emt 0:03:12]} 18. b4 {[%emt 0:02:09]} b6 {[%emt 0:00:21]} 19. bxc5 {[%emt 0:01:22]} bxc5 {[%emt 0:00:17]} 20. Nb3 {[%emt 0:00:54]} Bd7 {[%emt 0:07:58]} 21. Rb1 {[%emt 0:01:18]} Rfb8 {[%emt 0:11:02]} 22. Na5 {[%emt 0:08:44]} Rb6 {[%emt 0:00:31]} 23. a4 {[%emt 0:04:43]} Bg7 {[%emt 0:01:47]} 24. Nb5 {[%emt 0:03:28]} Nh6 {[%emt 0:02:03]} 25. h3 {[%emt 0:00:48]} Nfg4 {[%emt 0:15:59]} 26. hxg4 {[%emt 0:03:02]} fxg4 {[%emt 0:00:05]} 27. g3 {[%emt 0:04:36]} Nf5 {[%emt 0:00:19]} 28. Bf2 {[%emt 0:00:40]} e3 {[%emt 0:01:58]} 29. Be1 {[%emt 0:01:01]} Rf8 {[%emt 0:14:24]} 30. Nc6 {[%emt 0:00:22]} Bxc6 {[%emt 0:00:56]} 31. dxc6 {[%emt 0:00:05]} a6 {[%emt 0:00:53]} 32. c7 {[%emt 0:03:19]} Qd7 {[%emt 0:00:14]} 33. a5 {[%emt 0:01:47]} Rc6 {[%emt 0:00:51]} 34. Nc3 {[%emt 0:02:55]} Rxc7 {[%emt 0:00:25]} 35. Nd5 {[%emt 0:03:01]} Rb7 {[%emt 0:00:17]} 36. Bxg4 {[%emt 0:04:32]} e2 {[%emt 0:00:46]} 37. Bxe2 {[%emt 0:01:48]} Nd4 {[%emt 0:00:43]} 38. Rxb7 {[%emt 0:00:04]} Qxb7 {[%emt 0:00:29]} 39. Qd3 {[%emt 0:02:56]} Re8 {[%emt 0:00:26]} 40. Bh5 {[%emt 0:00:20]} Re6 {[%emt 0:00:37]} 41. Bf2 {[%emt 0:51:57]} 1-0

[Event "FIDE Womens Grand Swiss 2023"]
[Site "Douglas/Isle of Man"]
[Date "2023.11.01"]
[Round "7.20"]
[White "Kosteniuk, Alexandra"]
[Black "Kiolbasa, Oliwia"]
[Result "1/2-1/2"]
[ECO "A19"]
[WhiteElo "2523"]
[BlackElo "2375"]
[Annotator "ChessBase"]
[PlyCount "92"]
[EventDate "2023.10.04"]
[EventType "swiss"]
[EventCountry "GBR"]
[SourceTitle "playchess.com"]
[Source "ChessBase"]
[SourceQuality "1"]
[TimeControl "40/6000+30:20/3000+30:900+30"]

1. c4 {[%emt 0:10:03]} e6 {[%emt 0:10:16]} 2. Nc3 {[%emt 0:00:13]} Nf6 {[%emt 0:02:08]} 3. e4 {[%emt 0:00:13]} c5 {[%emt 0:00:25]} 4. e5 {[%emt 0:00:50]} Ng8 {[%emt 0:00:09]} 5. Nf3 {[%emt 0:00:20]} Nc6 {[%emt 0:01:17]} 6. d4 {[%emt 0:00:55]} cxd4 {[%emt 0:06:42]} 7. Nxd4 {[%emt 0:00:30]} d6 {[%emt 0:08:41]} 8. Nxc6 {[%emt 0:04:17]} bxc6 {[%emt 0:00:10]} 9. exd6 {[%emt 0:00:44]} Bxd6 {[%emt 0:03:40]} 10. g3 {[%emt 0:01:06]} Ne7 {[%emt 0:10:36]} 11. Bg2 {[%emt 0:01:20]} O-O {[%emt 0:04:22]} 12. O-O {[%emt 0:00:17]} Rb8 {[%emt 0:00:51]} 13. Qc2 {[%emt 0:04:05]} Nf5 {[%emt 0:02:24]} 14. Qa4 {[%emt 0:28:29]} Bd7 {[%emt 0:05:00]} 15. Rd1 {[%emt 0:07:44]} Qc7 {[%emt 0:07:18]} 16. Ne4 {[%emt 0:00:52]} Be7 {[%emt 0:18:01]} 17. c5 {[%emt 0:05:17]} e5 {[%emt 0:00:52]} 18. f4 {[%emt 0:11:41]} Be6 {[%emt 0:06:42]} 19. fxe5 {[%emt 0:00:34]} Qxe5 {[%emt 0:01:22]} 20. Qc2 {[%emt 0:09:02]} Rb4 {[%emt 0:05:48]} 21. Bf4 {[%emt 0:11:45]} Qxb2 {[%emt 0:02:48]} 22. Qxb2 {[%emt 0:00:18]} Rxb2 {[%emt 0:00:02]} 23. Nd6 {[%emt 0:00:44]} Bf6 {[%emt 0:00:52]} 24. Nxf5 {[%emt 0:03:44]} Bxf5 {[%emt 0:00:05]} 25. Rac1 {[%emt 0:00:07]} Rc8 {[%emt 0:01:50]} 26. Rd6 {[%emt 0:02:32]} Rxa2 {[%emt 0:02:12]} 27. Bf3 {[%emt 0:03:07]} a5 {[%emt 0:04:31]} 28. Rxc6 {[%emt 0:00:37]} Rxc6 {[%emt 0:00:55]} 29. Bxc6 {[%emt 0:00:02]} a4 {[%emt 0:00:14]} 30. Bd5 {[%emt 0:01:18]} Bd4+ {[%emt 0:02:45]} 31. Kh1 {[%emt 0:00:01]} Ra1 {[%emt 0:01:45]} 32. Rxa1 {[%emt 0:01:19]} Bxa1 {[%emt 0:00:02]} 33. c6 {[%emt 0:00:47]} a3 {[%emt 0:00:40]} 34. c7 {[%emt 0:00:26]} Bd4 {[%emt 0:01:06]} 35. Kg2 {[%emt 0:00:19]} Bc8 {[%emt 0:00:53]} 36. Bd6 {[%emt 0:00:18]} Bb2 {[%emt 0:00:27]} 37. Kf3 {[%emt 0:00:29]} g5 {[%emt 0:00:24]} 38. g4 {[%emt 0:02:05]} Kg7 {[%emt 0:00:22]} 39. h3 {[%emt 0:00:22]} Kf6 {[%emt 0:00:26]} 40. Ke4 {[%emt 0:00:34]} Kg6 {[%emt 0:00:35]} 41. Kd3 {[%emt 0:27:49]} f5 {[%emt 0:23:52]} 42. gxf5+ {[%emt 0:02:19]} Kxf5 {[%emt 0:01:02]} 43. Bxa3 {[%emt 0:01:36]} Bxa3 {[%emt 0:00:28]} 44. Bf3 {[%emt 0:00:03]} Bd6 {[%emt 0:02:57]} 45. Bg4+ {[%emt 0:01:27]} Kf4 {[%emt 0:00:05]} 46. Bxc8 {[%emt 0:00:04]} Bxc7 {[%emt 0:00:03]} 1/2-1/2

[Event "FIDE Womens Grand Swiss 2023"]
[Site "Douglas/Isle of Man"]
[Date "2023.11.01"]
[Round "7.21"]
[White "Matnadze Bujiashvili, Ann"]
[Black "Vantika Agrawal"]
[Result "1/2-1/2"]
[ECO "E66"]
[WhiteElo "2400"]
[BlackElo "2435"]
[Annotator "ChessBase"]
[PlyCount "87"]
[EventDate "2023.10.04"]
[EventType "swiss"]
[EventCountry "GBR"]
[SourceTitle "playchess.com"]
[Source "ChessBase"]
[SourceQuality "1"]
[TimeControl "40/6000+30:20/3000+30:900+30"]

1. d4 {[%emt 0:10:06]} Nf6 {[%emt 0:10:14]} 2. g3 {[%emt 0:00:10]} g6 {[%emt 0:00:28]} 3. Bg2 {[%emt 0:00:06]} Bg7 {[%emt 0:00:09]} 4. Nf3 {[%emt 0:00:06]} O-O {[%emt 0:00:11]} 5. O-O {[%emt 0:00:07]} d6 {[%emt 0:00:08]} 6. c4 {[%emt 0:00:05]} Nc6 {[%emt 0:00:10]} 7. Nc3 {[%emt 0:00:37]} a6 {[%emt 0:00:10]} 8. d5 {[%emt 0:00:28]} Na5 {[%emt 0:00:12]} 9. Nd2 {[%emt 0:00:06]} c5 {[%emt 0:00:16]} 10. Rb1 {[%emt 0:00:06]} b5 {[%emt 0:00:38]} 11. b3 {[%emt 0:02:24]} Rb8 {[%emt 0:00:41]} 12. Bb2 {[%emt 0:00:06]} Bh6 {[%emt 0:01:03]} 13. Ba1 {[%emt 0:02:18]} Bxd2 {[%emt 0:02:04]} 14. Qxd2 {[%emt 0:00:05]} bxc4 {[%emt 0:00:08]} 15. Ne4 {[%emt 0:01:08]} Nxe4 {[%emt 0:00:40]} 16. Bxe4 {[%emt 0:00:14]} cxb3 {[%emt 0:00:39]} 17. Qc3 {[%emt 0:14:21]} f6 {[%emt 0:02:00]} 18. axb3 {[%emt 0:00:29]} Rb4 {[%emt 0:04:25]} 19. Bc2 {[%emt 0:03:19]} e5 {[%emt 0:40:09]} 20. Qd2 {[%emt 0:09:40]} Bh3 {[%emt 0:14:28]} 21. Rfd1 {[%emt 0:00:47]} Nb7 {[%emt 0:03:45]} 22. Bc3 {[%emt 0:01:18]} Rb6 {[%emt 0:00:56]} 23. Qh6 {[%emt 0:01:20]} Bf5 {[%emt 0:03:49]} 24. e4 {[%emt 0:03:00]} Bd7 {[%emt 0:03:48]} 25. f4 {[%emt 0:00:17]} Qe7 {[%emt 0:01:56]} 26. fxe5 {[%emt 0:02:04]} fxe5 {[%emt 0:05:14]} 27. Rf1 {[%emt 0:02:16]} Rxf1+ {[%emt 0:09:04]} 28. Rxf1 {[%emt 0:00:02]} Nd8 {[%emt 0:00:38]} 29. h4 {[%emt 0:05:02]} Nf7 {[%emt 0:00:29]} 30. Qe3 {[%emt 0:00:17]} Rb8 {[%emt 0:00:47]} 31. Bd2 {[%emt 0:01:40]} Bb5 {[%emt 0:03:23]} 32. Rf3 {[%emt 0:05:47]} c4 {[%emt 0:00:39]} 33. b4 {[%emt 0:01:06]} Rc8 {[%emt 0:01:37]} 34. Qf2 {[%emt 0:01:05]} Rf8 {[%emt 0:01:57]} 35. Bg5 {[%emt 0:16:15]} Nxg5 {[%emt 0:00:27]} 36. Rxf8+ {[%emt 0:00:08]} Qxf8 {[%emt 0:00:05]} 37. Qxf8+ {[%emt 0:00:12]} Kxf8 {[%emt 0:00:03]} 38. hxg5 {[%emt 0:00:05]} Kg7 {[%emt 0:01:16]} 39. Kf2 {[%emt 0:00:03]} h6 {[%emt 0:00:17]} 40. Ke3 {[%emt 0:00:13]} c3 {[%emt 0:00:55]} 41. Bd3 {[%emt 0:50:40]} hxg5 {[%emt 0:50:28]} 42. Bxb5 {[%emt 0:00:18]} axb5 {[%emt 0:00:09]} 43. Kd3 {[%emt 0:00:05]} Kh6 {[%emt 0:00:45]} 44. g4 {[%emt 0:00:37]} 1/2-1/2

[Event "FIDE Womens Grand Swiss 2023"]
[Site "Douglas/Isle of Man"]
[Date "2023.11.01"]
[Round "7.22"]
[White "Divya Deshmukh"]
[Black "Aulia, Medina Warda"]
[Result "0-1"]
[ECO "D32"]
[WhiteElo "2408"]
[BlackElo "2362"]
[Annotator "ChessBase"]
[PlyCount "78"]
[EventDate "2023.10.04"]
[EventType "swiss"]
[EventCountry "GBR"]
[SourceTitle "playchess.com"]
[Source "ChessBase"]
[SourceQuality "1"]
[TimeControl "40/6000+30:20/3000+30:900+30"]

1. d4 {[%emt 0:10:02]} d5 {[%emt 0:10:12]} 2. c4 {[%emt 0:00:08]} e6 {[%emt 0:00:04]} 3. Nc3 {[%emt 0:00:06]} c5 {[%emt 0:00:05]} 4. cxd5 {[%emt 0:00:12]} exd5 {[%emt 0:00:03]} 5. Nf3 {[%emt 0:00:07]} Nf6 {[%emt 0:00:06]} 6. Bg5 {[%emt 0:00:04]} Be6 {[%emt 0:00:05]} 7. Qa4+ {[%emt 0:00:03]} Nc6 {[%emt 0:03:17]} 8. e3 {[%emt 0:00:20]} Be7 {[%emt 0:03:45]} 9. Bb5 {[%emt 0:03:48]} Qb6 {[%emt 0:01:28]} 10. O-O {[%emt 0:04:21]} O-O {[%emt 0:00:12]} 11. Bxc6 {[%emt 0:00:06]} bxc6 {[%emt 0:00:46]} 12. Qc2 {[%emt 0:00:07]} cxd4 {[%emt 0:01:15]} 13. Nxd4 {[%emt 0:01:06]} c5 {[%emt 0:01:24]} 14. Bxf6 {[%emt 0:00:54]} Bxf6 {[%emt 0:01:01]} 15. Na4 {[%emt 0:07:55]} Qa5 {[%emt 0:00:06]} 16. Nxc5 {[%emt 0:17:55]} Rfc8 {[%emt 0:00:05]} 17. Rfc1 {[%emt 0:00:11]} Be7 {[%emt 0:00:07]} 18. Ndb3 {[%emt 0:01:42]} Qb6 {[%emt 0:00:05]} 19. Qc3 {[%emt 0:00:37]} Rab8 {[%emt 0:00:04]} 20. f4 {[%emt 0:36:17]} h6 {[%emt 0:13:00]} 21. Qd4 {[%emt 0:09:35]} Bxc5 {[%emt 0:04:51]} 22. Nxc5 {[%emt 0:00:13]} Qxb2 {[%emt 0:00:06]} 23. Qd3 {[%emt 0:02:00]} Rb6 {[%emt 0:03:00]} 24. Qd1 {[%emt 0:05:37]} Rbc6 {[%emt 0:11:21]} 25. Nd3 {[%emt 0:06:12]} Qa3 {[%emt 0:01:24]} 26. Rxc6 {[%emt 0:02:28]} Rxc6 {[%emt 0:00:04]} 27. Rb1 {[%emt 0:00:02]} Bf5 {[%emt 0:04:29]} 28. Rb3 {[%emt 0:01:07]} Qa5 {[%emt 0:00:06]} 29. Nb4 {[%emt 0:00:23]} Rd6 {[%emt 0:00:32]} 30. Qd4 {[%emt 0:01:16]} Be4 {[%emt 0:00:11]} 31. h3 {[%emt 0:00:31]} Rg6 {[%emt 0:01:37]} 32. Rb2 {[%emt 0:00:24]} Qc7 {[%emt 0:00:11]} 33. Kh2 {[%emt 0:00:15]} Qc4 {[%emt 0:02:21]} 34. f5 {[%emt 0:00:50]} Rf6 {[%emt 0:03:04]} 35. Qxa7 {[%emt 0:00:28]} Rxf5 {[%emt 0:00:09]} 36. Qb8+ {[%emt 0:00:17]} Kh7 {[%emt 0:00:05]} 37. Qg3 {[%emt 0:00:46]} Qc3 {[%emt 0:02:47]} 38. Rb3 {[%emt 0:00:29]} Qf6 {[%emt 0:00:13]} 39. Ra3 {[%emt 0:00:34]} Rg5 {[%emt 0:00:16]} 0-1

[Event "FIDE Womens Grand Swiss 2023"]
[Site "Douglas/Isle of Man"]
[Date "2023.11.01"]
[Round "7.23"]
[White "Gomez Barrera, Javiera Belen"]
[Black "Tania, Sachdev"]
[Result "0-1"]
[ECO "C54"]
[WhiteElo "2266"]
[BlackElo "2389"]
[Annotator "ChessBase"]
[PlyCount "84"]
[EventDate "2023.10.04"]
[EventType "swiss"]
[EventCountry "GBR"]
[SourceTitle "playchess.com"]
[Source "ChessBase"]
[SourceQuality "1"]
[TimeControl "40/6000+30:20/3000+30:900+30"]

1. e4 {[%emt 0:10:03]} e5 {[%emt 0:10:04]} 2. Nf3 {[%emt 0:00:12]} Nc6 {[%emt 0:00:06]} 3. Bc4 {[%emt 0:00:05]} Nf6 {[%emt 0:00:18]} 4. d3 {[%emt 0:00:04]} Bc5 {[%emt 0:00:19]} 5. c3 {[%emt 0:00:04]} d6 {[%emt 0:00:05]} 6. O-O {[%emt 0:00:10]} h6 {[%emt 0:01:25]} 7. Re1 {[%emt 0:03:33]} O-O {[%emt 0:00:49]} 8. h3 {[%emt 0:02:30]} a5 {[%emt 0:01:07]} 9. Nbd2 {[%emt 0:01:29]} Bd7 {[%emt 0:01:12]} 10. Nf1 {[%emt 0:10:03]} a4 {[%emt 0:04:47]} 11. Bb5 {[%emt 0:06:18]} Ne7 {[%emt 0:02:35]} 12. Bxd7 {[%emt 0:00:08]} Qxd7 {[%emt 0:02:05]} 13. d4 {[%emt 0:01:05]} exd4 {[%emt 0:01:20]} 14. cxd4 {[%emt 0:03:30]} Bb4 {[%emt 0:00:44]} 15. Re2 {[%emt 0:11:28]} d5 {[%emt 0:09:23]} 16. e5 {[%emt 0:02:24]} Ne4 {[%emt 0:00:51]} 17. Ng3 {[%emt 0:11:55]} Nxg3 {[%emt 0:09:43]} 18. fxg3 {[%emt 0:00:01]} Nc6 {[%emt 0:12:50]} 19. Qd3 {[%emt 0:07:10]} a3 {[%emt 0:05:06]} 20. bxa3 {[%emt 0:00:43]} Be7 {[%emt 0:00:11]} 21. Rb1 {[%emt 0:11:52]} Nd8 {[%emt 0:04:12]} 22. Rb3 {[%emt 0:00:53]} b6 {[%emt 0:04:49]} 23. Rc2 {[%emt 0:02:06]} Ne6 {[%emt 0:01:00]} 24. Kh2 {[%emt 0:01:58]} Ra4 {[%emt 0:02:51]} 25. Qf5 {[%emt 0:07:57]} Rfa8 {[%emt 0:12:54]} 26. Rcc3 {[%emt 0:01:21]} Qe8 {[%emt 0:01:22]} 27. Bb2 {[%emt 0:06:44]} R8a6 {[%emt 0:02:56]} 28. Re3 {[%emt 0:02:08]} Qa8 {[%emt 0:04:48]} 29. g4 {[%emt 0:05:03]} c5 {[%emt 0:04:35]} 30. dxc5 {[%emt 0:00:10]} bxc5 {[%emt 0:00:15]} 31. Rb5 {[%emt 0:01:02]} R4a5 {[%emt 0:06:03]} 32. Rxa5 {[%emt 0:00:18]} Rxa5 {[%emt 0:00:02]} 33. Re1 {[%emt 0:01:32]} Qa6 {[%emt 0:02:10]} 34. Bc1 {[%emt 0:00:37]} Qc4 {[%emt 0:02:59]} 35. g5 {[%emt 0:00:33]} g6 {[%emt 0:00:20]} 36. Qb1 {[%emt 0:00:32]} Rb5 {[%emt 0:00:16]} 37. Qa1 {[%emt 0:00:12]} hxg5 {[%emt 0:00:30]} 38. Bd2 {[%emt 0:00:22]} d4 {[%emt 0:01:10]} 39. a4 {[%emt 0:01:09]} Qxa4 {[%emt 0:00:14]} 40. Qc1 {[%emt 0:00:08]} Qxa2 {[%emt 0:01:18]} 41. Bxg5 {[%emt 0:22:03]} Bxg5 {[%emt 0:23:51]} 42. Nxg5 {[%emt 0:00:02]} Rb2 {[%emt 0:00:19]} 0-1

[Event "FIDE Womens Grand Swiss 2023"]
[Site "Douglas/Isle of Man"]
[Date "2023.11.01"]
[Round "7.24"]
[White "Sandu, Mihaela"]
[Black "Nassr, Lina"]
[Result "1/2-1/2"]
[ECO "B45"]
[WhiteElo "2298"]
[BlackElo "2066"]
[Annotator "ChessBase"]
[PlyCount "91"]
[EventDate "2023.10.04"]
[EventType "swiss"]
[EventCountry "GBR"]
[SourceTitle "playchess.com"]
[Source "ChessBase"]
[SourceQuality "1"]
[TimeControl "40/6000+30:20/3000+30:900+30"]

1. e4 {[%emt 0:10:06]} c5 {[%emt 0:10:17]} 2. Nf3 {[%emt 0:00:04]} e6 {[%emt 0:00:22]} 3. d4 {[%emt 0:00:03]} cxd4 {[%emt 0:00:18]} 4. Nxd4 {[%emt 0:00:03]} Nf6 {[%emt 0:00:32]} 5. Nc3 {[%emt 0:00:29]} Nc6 {[%emt 0:00:44]} 6. Ndb5 {[%emt 0:05:10]} Bb4 {[%emt 0:01:42]} 7. a3 {[%emt 0:00:56]} Bxc3+ {[%emt 0:00:32]} 8. Nxc3 {[%emt 0:00:04]} d5 {[%emt 0:00:42]} 9. exd5 {[%emt 0:00:04]} exd5 {[%emt 0:00:19]} 10. Bd3 {[%emt 0:00:16]} O-O {[%emt 0:01:39]} 11. O-O {[%emt 0:01:22]} d4 {[%emt 0:02:23]} 12. Ne2 {[%emt 0:02:24]} Bg4 {[%emt 0:01:12]} 13. Qd2 {[%emt 0:04:19]} Bxe2 {[%emt 0:03:23]} 14. Qxe2 {[%emt 0:02:15]} Re8 {[%emt 0:02:04]} 15. Qf3 {[%emt 0:03:32]} Qb6 {[%emt 0:04:30]} 16. Bf4 {[%emt 0:13:23]} Ne5 {[%emt 0:06:58]} 17. Bxe5 {[%emt 0:00:46]} Rxe5 {[%emt 0:00:09]} 18. b3 {[%emt 0:00:10]} Rae8 {[%emt 0:12:23]} 19. h3 {[%emt 0:01:44]} Ne4 {[%emt 0:09:31]} 20. Rad1 {[%emt 0:03:01]} Nc3 {[%emt 0:03:11]} 21. Bc4 {[%emt 0:01:54]} R5e7 {[%emt 0:05:23]} 22. Rd2 {[%emt 0:02:08]} Qc5 {[%emt 0:03:10]} 23. Qg4 {[%emt 0:13:33]} b5 {[%emt 0:04:28]} 24. Bd3 {[%emt 0:00:08]} g6 {[%emt 0:01:54]} 25. Kh2 {[%emt 0:01:48]} Qd6+ {[%emt 0:06:18]} 26. Kg1 {[%emt 0:07:36]} Re1 {[%emt 0:07:20]} 27. g3 {[%emt 0:12:13]} Rxf1+ {[%emt 0:13:04]} 28. Bxf1 {[%emt 0:00:05]} Re1 {[%emt 0:01:52]} 29. Qc8+ {[%emt 0:01:13]} Qf8 {[%emt 0:01:58]} 30. Qd7 {[%emt 0:02:01]} Qa8 {[%emt 0:01:49]} 31. f3 {[%emt 0:00:59]} Rxf1+ {[%emt 0:03:46]} 32. Kxf1 {[%emt 0:00:04]} Qxf3+ {[%emt 0:00:06]} 33. Kg1 {[%emt 0:00:11]} Ne2+ {[%emt 0:02:18]} 34. Rxe2 {[%emt 0:00:14]} Qxe2 {[%emt 0:00:03]} 35. Qd8+ {[%emt 0:00:04]} Kg7 {[%emt 0:00:12]} 36. Qxd4+ {[%emt 0:00:09]} Kg8 {[%emt 0:00:43]} 37. Qc3 {[%emt 0:08:45]} Qe7 {[%emt 0:00:53]} 38. b4 {[%emt 0:00:57]} Qd7 {[%emt 0:00:12]} 39. h4 {[%emt 0:00:19]} h5 {[%emt 0:00:29]} 40. Kh2 {[%emt 0:04:52]} Qb7 {[%emt 0:00:48]} 41. Qd4 {[%emt 0:52:00]} Qc7 {[%emt 0:24:12]} 42. Qd3 {[%emt 0:00:00]} a6 {[%emt 0:01:03]} 43. Kg2 {[%emt 0:00:00]} Qc6+ {[%emt 0:00:51]} 44. Kf2 {[%emt 0:00:00]} Qe6 {[%emt 0:03:37]} 45. Qd2 {[%emt 0:00:00]} Qf5+ {[%emt 0:02:43]} 46. Kg1 {[%emt 0:00:00]} 1/2-1/2

[Event "FIDE Womens Grand Swiss 2023"]
[Site "Douglas/Isle of Man"]
[Date "2023.11.01"]
[Round "7.25"]
[White "Kanyamarala, Trisha"]
[Black "Lee, Alice"]
[Result "1-0"]
[ECO "D46"]
[WhiteElo "2184"]
[BlackElo "2388"]
[Annotator "ChessBase"]
[PlyCount "59"]
[EventDate "2023.10.04"]
[EventType "swiss"]
[EventCountry "GBR"]
[SourceTitle "playchess.com"]
[Source "ChessBase"]
[SourceQuality "1"]
[TimeControl "40/6000+30:20/3000+30:900+30"]

1. d4 {[%emt 0:10:05]} d5 {[%emt 0:10:03]} 2. c4 {[%emt 0:00:08]} e6 {[%emt 0:00:04]} 3. Nf3 {[%emt 0:00:10]} Nf6 {[%emt 0:00:06]} 4. Nc3 {[%emt 0:00:17]} c6 {[%emt 0:00:06]} 5. e3 {[%emt 0:00:18]} Nbd7 {[%emt 0:00:04]} 6. Bd3 {[%emt 0:00:18]} Bd6 {[%emt 0:00:31]} 7. O-O {[%emt 0:00:48]} dxc4 {[%emt 0:00:11]} 8. Bxc4 {[%emt 0:00:08]} O-O {[%emt 0:00:11]} 9. e4 {[%emt 0:03:52]} b5 {[%emt 0:01:08]} 10. Bb3 {[%emt 0:06:58]} b4 {[%emt 0:03:42]} 11. e5 {[%emt 0:02:43]} bxc3 {[%emt 0:00:09]} 12. exd6 {[%emt 0:15:26]} Ba6 {[%emt 0:29:33]} 13. Re1 {[%emt 0:07:34]} cxb2 {[%emt 0:00:30]} 14. Bxb2 {[%emt 0:00:06]} Qb6 {[%emt 0:00:04]} 15. Ne5 {[%emt 0:03:31]} Qb4 {[%emt 0:01:00]} 16. Qc1 {[%emt 0:07:22]} Bb7 {[%emt 0:08:36]} 17. Rb1 {[%emt 0:08:09]} Nxe5 {[%emt 0:05:56]} 18. dxe5 {[%emt 0:01:24]} Nd7 {[%emt 0:00:28]} 19. Bc3 {[%emt 0:06:33]} Qh4 {[%emt 0:07:07]} 20. Bc2 {[%emt 0:07:10]} Rab8 {[%emt 0:04:27]} 21. Rb4 {[%emt 0:05:46]} Qh5 {[%emt 0:11:07]} 22. Re3 {[%emt 0:03:06]} h6 {[%emt 0:10:34]} 23. Rh3 {[%emt 0:04:03]} Qg5 {[%emt 0:00:00]} 24. f4 {[%emt 0:03:44]} Qd8 {[%emt 0:00:00]} 25. f5 {[%emt 0:01:31]} Qg5 {[%emt 0:14:15]} 26. Bd2 {[%emt 0:01:17]} Qd8 {[%emt 0:00:02]} 27. Bxh6 {[%emt 0:02:05]} f6 {[%emt 0:00:34]} 28. fxe6 {[%emt 0:00:57]} Nxe5 {[%emt 0:00:52]} 29. Bxg7 {[%emt 0:01:56]} Qxd6 {[%emt 0:00:38]} 30. Rh8+ {[%emt 0:00:17]} 1-0

[Event "FIDE Womens Grand Swiss 2023"]
[Site "Douglas/Isle of Man"]
[Date "2023.11.02"]
[Round "8.1"]
[White "Muzychuk, Anna"]
[Black "Stefanova, Antoaneta"]
[Result "1/2-1/2"]
[ECO "C63"]
[WhiteElo "2510"]
[BlackElo "2424"]
[Annotator "ChessBase"]
[PlyCount "46"]
[EventDate "2023.10.04"]
[EventType "swiss"]
[EventCountry "GBR"]
[SourceTitle "playchess.com"]
[Source "ChessBase"]
[SourceQuality "1"]
[TimeControl "40/6000+30:20/3000+30:900+30"]

1. e4 {[%emt 0:10:03]} e5 {[%emt 0:10:04]} 2. Nf3 {[%emt 0:00:04]} Nc6 {[%emt 0:00:04]} 3. Bb5 {[%emt 0:00:09]} f5 {[%emt 0:00:19]} 4. d3 {[%emt 0:01:02]} fxe4 {[%emt 0:00:58]} 5. dxe4 {[%emt 0:00:05]} Nf6 {[%emt 0:00:41]} 6. O-O {[%emt 0:01:08]} Bc5 {[%emt 0:01:16]} 7. Bxc6 {[%emt 0:01:32]} bxc6 {[%emt 0:00:15]} 8. Nxe5 {[%emt 0:00:07]} O-O {[%emt 0:00:50]} 9. Nc3 {[%emt 0:00:33]} d6 {[%emt 0:07:01]} 10. Na4 {[%emt 0:07:58]} Qe8 {[%emt 0:30:50]} 11. Nd3 {[%emt 0:05:21]} Bg4 {[%emt 0:01:44]} 12. Qe1 {[%emt 0:01:23]} Bd4 {[%emt 0:00:17]} 13. c3 {[%emt 0:02:25]} Bb6 {[%emt 0:01:47]} 14. Nxb6 {[%emt 0:01:30]} axb6 {[%emt 0:00:07]} 15. a3 {[%emt 0:04:14]} Be6 {[%emt 0:09:29]} 16. e5 {[%emt 0:19:13]} Bc4 {[%emt 0:05:35]} 17. exf6 {[%emt 0:01:59]} Bxd3 {[%emt 0:00:28]} 18. fxg7 {[%emt 0:00:42]} Rf7 {[%emt 0:01:50]} 19. Qxe8+ {[%emt 0:00:57]} Rxe8 {[%emt 0:00:01]} 20. Rd1 {[%emt 0:00:07]} Bc2 {[%emt 0:00:21]} 21. Rf1 {[%emt 0:00:03]} Bd3 {[%emt 0:00:03]} 22. Rd1 {[%emt 0:00:04]} Bc2 {[%emt 0:00:04]} 23. Rf1 {[%emt 0:00:04]} Bd3 {[%emt 0:00:04]} 1/2-1/2